bitfinex/quotes_BTCUSD_20240101
["timestamp","ask_amount","ask_price","bid_price","bid_amount"]
[1704116704771,0.00018956,42776.0,42775.0,3.61945044]
[1704116705469,0.00018956,42776.0,42775.0,3.73094713]
[1704116706168,0.00018956,42776.0,42775.0,3.61945044]
[1704116706881,0.00018956,42776.0,42775.0,3.73094713]
[1704116707245,0.00018956,42776.0,42775.0,3.61945044]
[1704116707461,0.00018956,42776.0,42775.0,3.64723306]
[1704116707693,0.00018956,42776.0,42775.0,3.73088012]
[1704116710300,0.00018956,42776.0,42775.0,3.731196]
[1704116711511,0.00018956,42776.0,42775.0,3.75904563]
[1704116711721,0.00018956,42776.0,42775.0,3.64754894]
[1704116712368,0.00018956,42776.0,42775.0,3.75904563]
[1704116713219,0.00018956,42776.0,42775.0,2.35635963]
[1704116713434,0.00018956,42776.0,42775.0,3.29148363]
[1704116713649,0.00018956,42776.0,42775.0,3.75904563]
[1704116713859,0.00018956,42776.0,42775.0,3.93868563]
[1704116714061,0.00018956,42776.0,42775.0,3.66512894]
[1704116714298,0.00018956,42776.0,42775.0,3.80457204]
[1704116715180,0.00018956,42776.0,42775.0,3.77669104]
[1704116715647,0.00018956,42776.0,42775.0,3.80457204]
[1704116716126,0.00018956,42776.0,42775.0,3.66512894]
[1704116716303,0.00018956,42776.0,42775.0,3.80457204]
[1704116716539,0.00018956,42776.0,42775.0,3.66512894]
[1704116717370,0.00018956,42776.0,42775.0,3.80457204]
[1704116718008,0.00018956,42776.0,42775.0,3.77672172]
[1704116718413,0.00018956,42776.0,42775.0,3.66512894]
[1704116718671,0.00018956,42776.0,42775.0,3.77673867]
[1704116718921,0.00018956,42776.0,42775.0,3.66512894]
[1704116719406,0.00018956,42776.0,42775.0,2.86944804]
[1704116719621,0.02639562,42778.0,42777.0,0.55417437]
[1704116719842,0.02639562,42778.0,42777.0,1.86797074]
[1704116720066,0.02639562,42778.0,42777.0,2.39789074]
[1704116720278,0.02639562,42778.0,42777.0,2.53717302]
[1704116720754,0.02639562,42778.0,42777.0,2.54417302]
[1704116721165,0.02639562,42778.0,42777.0,3.00471302]
[1704116721582,0.02639562,42778.0,42777.0,3.16225404]
[1704116721736,0.02639562,42778.0,42777.0,3.16825404]
[1704116722747,0.02639562,42778.0,42777.0,2.68271404]
[1704116722927,0.02639562,42778.0,42777.0,2.70071404]
[1704116723686,0.02639562,42778.0,42777.0,3.01071302]
[1704116723849,0.02639562,42778.0,42777.0,3.16927068]
[1704116724053,0.02639562,42778.0,42777.0,3.16927056]
[1704116724258,0.02639562,42778.0,42777.0,3.02371302]
[1704116724676,0.02639562,42778.0,42777.0,3.04171302]
[1704116724877,0.02639562,42778.0,42777.0,3.02371302]
[1704116725414,0.02639562,42778.0,42777.0,3.04271302]
[1704116726262,0.02639562,42778.0,42777.0,3.53325302]
[1704116726473,6.2e-07,42778.0,42777.0,3.68207095]
[1704116735551,6.2e-07,42779.0,42778.0,0.55417437]
[1704116735792,6.2e-07,42779.0,42778.0,1.90075983]
[1704116736034,6.2e-07,42779.0,42778.0,3.37437983]
[1704116736229,6.2e-07,42779.0,42778.0,3.55401983]
[1704116736571,6.2e-07,42779.0,42778.0,3.43260302]
[1704116736797,0.0262,42783.0,42782.0,0.55417437]
[1704116737003,0.0262,42783.0,42782.0,2.71427102]
[1704116737475,0.0262,42783.0,42782.0,3.19721102]
[1704116737865,0.0262,42783.0,42782.0,3.21421102]
[1704116738083,0.0262,42783.0,42782.0,3.23121102]
[1704116738293,0.0262,42783.0,42782.0,3.21421102]
[1704116738699,0.0262,42783.0,42782.0,3.23321102]
[1704116739114,0.0262,42783.0,42782.0,3.21621102]
[1704116739326,0.0262,42783.0,42782.0,3.37214622]
[1704116739544,0.0262,42783.0,42782.0,3.39114622]
[1704116740375,0.0262,42783.0,42782.0,2.92366022]
[1704116742458,0.0262,42783.0,42782.0,3.06326765]
[1704116742673,0.0262,42783.0,42782.0,2.92366022]
[1704116743632,0.0262,42783.0,42782.0,3.06325786]
[1704116744461,0.0262,42783.0,42782.0,3.03534161]
[1704116744887,0.0262,42783.0,42782.0,3.28094161]
[1704116745254,0.0262,42783.0,42782.0,3.30885786]
[1704116745832,0.0262,42783.0,42782.0,3.28093819]
[1704116746021,0.0262,42783.0,42782.0,2.34596619]
[1704116746644,0.0262,42783.0,42782.0,3.28093819]
[1704116747069,0.0262,42783.0,42782.0,2.76254657]
[1704116747278,0.0262,42783.0,42782.0,2.35596657]
[1704116747487,0.0262,42783.0,42782.0,2.20559268]
[1704116749537,0.0262,42783.0,42782.0,2.06289831]
[1704116749743,0.0262,42783.0,42782.0,2.07077268]
[1704116750169,0.0262,42783.0,42782.0,2.21465268]
[1704116752455,0.0262,42783.0,42782.0,2.68213868]
[1704116753958,0.0262,42783.0,42782.0,2.53825868]
[1704116754161,0.0262,42783.0,42782.0,2.67559868]
[1704116754449,0.0262,42783.0,42782.0,2.75937103]
[1704116754589,0.0262,42783.0,42782.0,2.73145635]
[1704116754802,0.0262,42783.0,42782.0,2.04430311]
[1704116754995,0.0262,42783.0,42782.0,1.83832311]
[1704116756447,0.0262,42783.0,42782.0,1.86704032]
[1704116756675,0.0262,42783.0,42782.0,1.83832311]
[1704116758739,0.0262,42783.0,42782.0,1.53832311]
[1704116758947,0.0262,42783.0,42782.0,1.83832311]
[1704116759147,0.0262,42783.0,42782.0,1.59202311]
[1704116759801,0.0262,42783.0,42782.0,1.12453711]
[1704116760432,0.0262,42783.0,42782.0,1.09225711]
[1704116760639,0.0262,42783.0,42782.0,1.55974311]
[1704116761491,0.0262,42783.0,42782.0,1.25974311]
[1704116761708,0.0262,42783.0,42782.0,1.01634311]
[1704116761922,0.0262,42783.0,42782.0,0.583126]
[1704116762584,0.0262,42783.0,42782.0,0.565126]
[1704116763435,0.0262,42783.0,42782.0,0.527126]
[1704116763868,0.0262,42783.0,42782.0,0.08364]
[1704116764112,0.02832563,42783.0,42782.0,0.07464]
[1704116764323,0.02832563,42783.0,42782.0,0.05964]
[1704116764532,0.02832563,42783.0,42782.0,0.07864]
[1704116765012,0.02832563,42783.0,42782.0,0.019]
[1704116766807,0.02832563,42783.0,42782.0,0.01]
[1704116767006,0.02832563,42783.0,42776.0,0.063]
[1704116767236,0.03032563,42783.0,42776.0,0.063]
[1704116767628,0.00212563,42777.0,42776.0,0.063]
[1704116769727,0.00212563,42777.0,42776.0,0.530551]
[1704116770347,0.00212563,42777.0,42776.0,0.537551]
[1704116771179,0.00212563,42777.0,42776.0,0.540551]
[1704116771684,0.00212563,42777.0,42776.0,0.550551]
[1704116788037,0.00212563,42777.0,42776.0,0.668991]
[1704116788455,0.00212563,42777.0,42776.0,0.578271]
[1704116796288,0.00212563,42777.0,42776.0,0.11072]
[1704116796518,0.00212563,42777.0,42776.0,0.578271]
[1704116808099,0.00212563,42777.0,42776.0,0.554871]
[1704116810448,0.00212563,42777.0,42776.0,0.07016]
[1704116810977,0.00212563,42777.0,42776.0,0.02]
[1704116811182,0.08611549,42777.0,42776.0,0.02]
[1704116811619,0.05825574,42777.0,42776.0,0.02]
[1704116811842,0.05825574,42777.0,42776.0,0.01]
[1704116812273,0.05825574,42777.0,42776.0,0.014]
[1704116812687,0.00212563,42777.0,42776.0,0.004]
[1704116813042,0.00212563,42777.0,42776.0,0.008]
[1704116813250,0.05825574,42777.0,42776.0,0.008]
[1704116813447,0.00212563,42777.0,42776.0,0.008]
[1704116815526,0.00212563,42777.0,42776.0,0.004]
[1704116815745,0.00212563,42777.0,42776.0,0.005]
[1704116816190,0.05825574,42777.0,42776.0,0.001]
[1704116816403,0.00212563,42777.0,42776.0,0.001]
[1704116816623,0.00212563,42777.0,42776.0,0.002]
[1704116832614,0.00212563,42777.0,42776.0,0.558411]
[1704116834914,0.00212563,42777.0,42776.0,0.54528507]
[1704116836264,0.00212563,42777.0,42776.0,0.07773407]
[1704116836506,0.00212563,42777.0,42776.0,0.54528507]
[1704116845581,0.00212563,42777.0,42776.0,0.520111]
[1704116845814,0.00212563,42777.0,42776.0,0.467551]
[1704116846043,0.00212563,42776.0,42775.0,0.051]
[1704116846262,0.00212563,42776.0,42774.0,0.2609]
[1704116847326,0.00212563,42776.0,42775.0,0.004]
[1704116847512,0.00212563,42776.0,42775.0,0.002]
[1704116847764,0.00212563,42776.0,42774.0,0.2609]
[1704116847950,0.00212563,42776.0,42774.0,0.30928]
[1704116848169,0.00212563,42776.0,42774.0,0.31128]
[1704116848815,0.00212563,42776.0,42775.0,0.0477]
[1704116849781,0.00212563,42776.0,42775.0,0.0497]
[1704116849988,0.00212563,42776.0,42775.0,0.0517]
[1704116851528,0.00212563,42776.0,42775.0,0.004]
[1704116855732,0.00212563,42776.0,42775.0,0.002]
[1704116856127,0.00212563,42776.0,42774.0,0.31124]
[1704116856307,0.00212563,42776.0,42775.0,0.002]
[1704116856825,0.00212563,42776.0,42774.0,0.31124]
[1704116857376,0.00212563,42776.0,42775.0,0.004]
[1704116857807,0.00212563,42776.0,42775.0,0.002]
[1704116858007,0.00212563,42776.0,42774.0,0.31124]
[1704116858313,0.00212563,42775.0,42774.0,0.31124]
[1704116859002,0.00212563,42775.0,42774.0,0.31324]
[1704116859212,0.00212563,42775.0,42774.0,0.2629]
[1704116859637,0.00212563,42775.0,42774.0,0.2649]
[1704116860066,0.00212563,42775.0,42774.0,0.2609]
[1704116860271,0.00212563,42775.0,42774.0,0.2649]
[1704116861127,0.00212563,42775.0,42774.0,0.2689]
[1704116861985,0.00212563,42775.0,42774.0,0.31594]
[1704116862656,0.00212563,42775.0,42774.0,0.2689]
[1704116863097,0.00212563,42775.0,42774.0,0.2649]
[1704116863536,0.00212563,42775.0,42774.0,0.2669]
[1704116864016,0.00212563,42775.0,42774.0,0.2649]
[1704116864220,0.00212563,42775.0,42774.0,0.2689]
[1704116864451,0.00212563,42775.0,42774.0,0.33634]
[1704116865481,0.00212563,42775.0,42774.0,0.33234]
[1704116866124,0.00712563,42775.0,42774.0,0.32834]
[1704116866727,0.01112563,42775.0,42774.0,0.32834]
[1704116870080,0.01112563,42775.0,42774.0,0.995913]
[1704116872486,0.01,42781.0,42778.0,0.68887437]
[1704116872911,0.01,42781.0,42779.0,0.31444]
[1704116874635,0.01,42781.0,42779.0,0.31544]
[1704116875077,0.01,42781.0,42779.0,0.31644]
[1704116876730,0.01,42781.0,42779.0,0.2688]
[1704116876880,0.06608085,42783.0,42779.0,0.31416]
[1704116877081,0.01,42781.0,42779.0,0.31416]
[1704116877265,0.01,42781.0,42779.0,0.2688]
[1704116877683,0.01,42781.0,42779.0,0.2678]
[1704116878396,0.01,42781.0,42779.0,0.2688]
[1704116879652,0.01,42781.0,42779.0,0.2678]
[1704116879871,0.01,42781.0,42779.0,0.2688]
[1704116886057,0.06608085,42781.0,42779.0,0.2688]
[1704116886278,0.09412127,42781.0,42779.0,0.002]
[1704116886510,0.490508,42780.0,42779.0,0.002]
[1704116886727,0.57462927,42780.0,42779.0,0.002]
[1704116887143,0.6026697,42780.0,42779.0,0.002]
[1704116887351,0.490508,42780.0,42778.0,0.68887437]
[1704116887567,0.57466972,42780.0,42778.0,0.68887437]
[1704116887783,0.57466972,42780.0,42779.0,0.001]
[1704116888226,0.490508,42780.0,42779.0,0.001]
[1704116888436,0.490508,42780.0,42778.0,0.68887437]
[1704116888647,0.57467096,42780.0,42778.0,0.68887437]
[1704116888863,0.08416296,42779.0,42778.0,0.68987437]
[1704116889069,0.07910806,42779.0,42778.0,0.68987437]
[1704116889289,0.07910953,42779.0,42778.0,0.68887437]
[1704116889521,0.023,42779.0,42778.0,0.68887437]
[1704116890307,0.07911108,42779.0,42778.0,0.68987437]
[1704116890555,0.10716296,42779.0,42778.0,0.68987437]
[1704116890763,0.10716296,42779.0,42778.0,0.68887437]
[1704116891863,0.023,42779.0,42778.0,0.68887437]
[1704116892710,0.10716296,42779.0,42778.0,0.68987437]
[1704116892941,0.10716296,42779.0,42778.0,0.69087437]
[1704116893791,0.023,42779.0,42778.0,0.69087437]
[1704116894213,0.10716296,42779.0,42778.0,0.69087437]
[1704116897293,0.023,42779.0,42778.0,0.69087437]
[1704116897755,0.10716296,42779.0,42778.0,0.69087437]
[1704116899364,0.023,42779.0,42778.0,0.69087437]
[1704116899533,0.1071604,42779.0,42778.0,0.69087437]
[1704116900992,0.03650682,42781.0,42778.0,0.002]
[1704116901212,0.23321711,42780.0,42778.0,0.002]
[1704116901629,0.70072911,42780.0,42778.0,0.002]
[1704116902075,0.70072911,42780.0,42778.0,0.001]
[1704116902293,0.70072911,42780.0,42778.0,0.002]
[1704116902512,0.70072911,42780.0,42778.0,0.001]
[1704116902946,0.70072911,42780.0,42778.0,0.002]
[1704116903389,0.70072911,42780.0,42778.0,0.001]
[1704116903590,0.05610066,42779.0,42778.0,0.001]
[1704116903807,0.70072911,42780.0,42778.0,0.002]
[1704116904442,0.70072911,42780.0,42778.0,0.001]
[1704116904670,0.05609962,42779.0,42778.0,0.001]
[1704116904871,0.70072911,42780.0,42778.0,0.001]
[1704116905912,0.70072911,42780.0,42778.0,0.002]
[1704116906334,0.70072911,42780.0,42778.0,0.001]
[1704116906796,0.70072911,42780.0,42778.0,0.002]
[1704116907414,0.467519,42779.0,42778.0,0.002]
[1704116907691,0.73373611,42779.0,42778.0,0.002]
[1704116907853,0.87393823,42779.0,42778.0,0.002]
[1704116908976,0.87393823,42779.0,42773.0,0.2662]
[1704116909187,0.05609801,42776.0,42773.0,0.2662]
[1704116909404,0.28931512,42776.0,42773.0,0.2662]
[1704116909891,0.05609801,42775.0,42773.0,0.2662]
[1704116910331,0.05609801,42775.0,42773.0,0.2672]
[1704116910748,0.05609801,42775.0,42773.0,0.2662]
[1704116912304,0.23321711,42776.0,42773.0,0.2662]
[1704116912305,0.28930041,42776.0,42773.0,0.2662]
[1704116913557,0.29930041,42776.0,42773.0,0.2662]
[1704116914909,0.24321711,42776.0,42773.0,0.2662]
[1704116915986,0.29930041,42776.0,42773.0,0.2662]
[1704116916861,0.24321711,42776.0,42773.0,0.2662]
[1704116917515,0.29930041,42776.0,42773.0,0.2662]
[1704116918763,0.24321711,42776.0,42773.0,0.2662]
[1704116919346,0.29930041,42776.0,42773.0,0.2662]
[1704116919566,0.24321711,42776.0,42773.0,0.2662]
[1704116919789,0.29930041,42776.0,42773.0,0.2662]
[1704116924142,0.0560833,42775.0,42773.0,0.2662]
[1704116924809,0.0560833,42775.0,42765.0,0.06108]
[1704116924810,0.01,42771.0,42770.0,0.2569]
[1704116925032,0.01,42771.0,42765.0,0.06108]
[1704116925033,0.01,42768.0,42765.0,0.003]
[1704116925243,0.05609191,42767.0,42766.0,0.2569]
[1704116925453,0.06609191,42768.0,42766.0,0.2569]
[1704116926307,0.01,42768.0,42766.0,0.2569]
[1704116926938,0.013,42768.0,42766.0,0.2569]
[1704116928212,0.01,42768.0,42766.0,0.2569]
[1704116928424,0.012,42768.0,42766.0,0.2569]
[1704116928843,0.014,42768.0,42766.0,0.2569]
[1704116935361,0.004,42768.0,42766.0,0.2569]
[1704116935585,0.014,42768.0,42766.0,0.2569]
[1704116936983,0.48164,42768.0,42766.0,0.2569]
[1704116941030,0.014,42768.0,42766.0,0.2569]
[1704116941202,0.48164,42768.0,42766.0,0.2569]
[1704116946660,0.014,42768.0,42766.0,0.2569]
[1704116946819,0.48164,42768.0,42766.0,0.2569]
[1704116951427,0.014,42768.0,42767.0,0.04698]
[1704116952454,0.012,42768.0,42767.0,0.04698]
[1704116953111,0.01,42768.0,42767.0,0.06966]
[1704116953548,0.012,42768.0,42767.0,0.06966]
[1704116953755,0.01,42768.0,42767.0,0.06966]
[1704116954206,0.012,42768.0,42767.0,0.06966]
[1704116954622,0.01,42768.0,42767.0,0.06966]
[1704116955083,0.01,42768.0,42767.0,0.07066]
[1704116955372,0.01,42768.0,42767.0,0.07166]
[1704116956705,0.01,42773.0,42767.0,0.07166]
[1704116956917,0.01,42768.0,42767.0,0.07166]
[1704116958200,0.01,42768.0,42767.0,0.07066]
[1704116958382,0.01,42768.0,42767.0,0.06966]
[1704116959141,0.01,42768.0,42767.0,0.07066]
[1704116959361,0.06601695,42774.0,42767.0,0.07166]
[1704116959569,0.55158743,42775.0,42767.0,0.07166]
[1704116959570,0.52357895,42775.0,42767.0,0.07166]
[1704116959776,0.477562,42775.0,42767.0,0.07166]
[1704116960192,0.01,42774.0,42767.0,0.07166]
[1704116961253,0.477562,42775.0,42767.0,0.07166]
[1704116961462,0.477562,42775.0,42767.0,0.06966]
[1704116961688,0.006,42774.0,42767.0,0.06966]
[1704116962125,0.477562,42775.0,42767.0,0.06966]
[1704116962295,0.53357895,42775.0,42767.0,0.06966]
[1704116962511,0.54657895,42775.0,42767.0,0.07166]
[1704116963132,0.483562,42775.0,42767.0,0.07066]
[1704116963553,0.017,42774.0,42767.0,0.07166]
[1704116964960,0.01,42774.0,42767.0,0.06966]
[1704116965165,0.01,42774.0,42767.0,0.07066]
[1704116965377,0.01,42774.0,42767.0,0.07166]
[1704116965521,0.01,42774.0,42767.0,0.07066]
[1704116965738,0.01,42774.0,42767.0,0.06966]
[1704116965937,0.014,42774.0,42767.0,0.06966]
[1704116966142,0.007,42774.0,42767.0,0.16464]
[1704116966339,0.007,42774.0,42768.0,0.651593]
[1704116966544,0.007,42774.0,42768.0,0.467633]
[1704116966769,0.01,42773.0,42769.0,0.3222]
[1704116967339,0.007,42774.0,42770.0,0.07098]
[1704116967545,0.007,42774.0,42771.0,0.2]
[1704116967929,0.007,42774.0,42771.0,0.467596]
[1704116968152,0.007,42774.0,42772.0,0.29988]
[1704116968404,0.003,42774.0,42772.0,0.29988]
[1704116968653,0.003,42774.0,42773.0,0.05184]
[1704116968654,0.007,42774.0,42773.0,0.05184]
[1704116968879,0.33790484,42777.0,42773.0,0.05184]
[1704116969150,0.003,42774.0,42773.0,0.05184]
[1704116969426,0.003,42774.0,42772.0,0.29316]
[1704116969427,0.01,42773.0,42772.0,0.29316]
[1704116969672,0.01,42773.0,42772.0,0.243]
[1704116972044,0.73580111,42773.0,42767.0,0.06222]
[1704116972283,0.05605238,42771.0,42768.0,0.2515]
[1704116972542,0.52367138,42770.0,42765.0,0.9116]
[1704116973027,0.467619,42770.0,42765.0,0.9116]
[1704116973692,0.01,42768.0,42765.0,0.9116]
[1704116973923,0.01,42768.0,42765.0,0.2545]
[1704116974166,0.06605238,42768.0,42765.0,0.2545]
[1704116974370,0.06605238,42768.0,42765.0,0.003]
[1704116975343,0.30126949,42768.0,42765.0,0.003]
[1704116975562,0.29926949,42768.0,42765.0,0.003]
[1704116975772,0.30326949,42768.0,42765.0,0.003]
[1704116976813,0.29326949,42768.0,42765.0,0.003]
[1704116976998,0.30326949,42768.0,42765.0,0.003]
[1704116978054,0.29326949,42768.0,42765.0,0.003]
[1704116978253,0.30326949,42768.0,42765.0,0.003]
[1704116985156,0.23667749,42768.0,42765.0,0.003]
[1704116986825,0.23467749,42768.0,42765.0,0.003]
[1704116987682,0.23267749,42768.0,42765.0,0.003]
[1704116988115,0.23467749,42768.0,42765.0,0.003]
[1704116988883,0.23267749,42768.0,42765.0,0.003]
[1704116989083,0.23467749,42768.0,42765.0,0.003]
[1704116989290,0.23667749,42768.0,42765.0,0.003]
[1704116989494,0.23467749,42768.0,42766.0,0.2448]
[1704116989874,0.23667749,42768.0,42766.0,0.2448]
[1704116990671,0.22667749,42768.0,42766.0,0.2448]
[1704116990886,0.23667749,42768.0,42766.0,0.2448]
[1704116991113,0.23467749,42768.0,42766.0,0.2448]
[1704116991577,0.23267749,42768.0,42766.0,0.2448]
[1704116991810,0.23467749,42768.0,42766.0,0.2448]
[1704116992910,0.23667749,42768.0,42766.0,0.2448]
[1704116995253,0.29272208,42768.0,42766.0,0.2448]
[1704116995770,0.23667749,42768.0,42766.0,0.2448]
[1704116996267,0.004,42768.0,42766.0,0.2448]
[1704116996483,0.004,42768.0,42767.0,0.05268]
[1704116997948,0.002,42768.0,42767.0,0.05268]
[1704116998431,0.001,42768.0,42766.0,0.71246]
[1704116998648,0.05604459,42772.0,42766.0,0.71246]
[1704116999300,0.05604459,42772.0,42767.0,0.002]
[1704116999966,0.06004459,42772.0,42767.0,0.002]
[1704117000383,0.004,42772.0,42767.0,0.04718]
[1704117000811,0.004,42772.0,42766.0,0.71246]
[1704117001070,0.004,42772.0,42766.0,0.2448]
[1704117001289,0.004,42772.0,42767.0,0.27668]
[1704117001290,0.003,42772.0,42767.0,0.27668]
[1704117001493,0.007,42772.0,42771.0,0.467606]
[1704117001909,0.003,42772.0,42771.0,0.467606]
[1704117002123,0.003,42772.0,42771.0,0.525626]
[1704117002552,0.01,42776.0,42771.0,0.525626]
[1704117002760,0.003,42772.0,42771.0,0.525626]
[1704117002991,0.007,42772.0,42771.0,0.525626]
[1704117003181,0.007,42772.0,42771.0,0.467606]
[1704117003437,0.007,42772.0,42771.0,0.532466]
[1704117004053,0.004,42772.0,42771.0,0.532466]
[1704117004685,0.36604459,42777.0,42771.0,0.532466]
[1704117005113,0.36604459,42777.0,42772.0,0.0591]
[1704117005803,0.37304459,42777.0,42772.0,0.0591]
[1704117006474,0.38104459,42777.0,42772.0,0.0601]
[1704117007174,0.37404459,42777.0,42772.0,0.0601]
[1704117007585,0.01,42776.0,42772.0,0.0601]
[1704117008849,0.016,42776.0,42772.0,0.0591]
[1704117009257,0.023,42776.0,42772.0,0.0591]
[1704117011933,0.013,42776.0,42772.0,0.0591]
[1704117012143,0.023,42776.0,42772.0,0.0591]
[1704117015493,0.023,42776.0,42769.0,0.08046]
[1704117015695,0.023,42776.0,42773.0,0.05226]
[1704117015919,0.01,42775.0,42770.0,0.0591]
[1704117016153,0.01,42775.0,42769.0,0.0624]
[1704117016800,0.01,42773.0,42768.0,0.05166]
[1704117016994,0.01,42773.0,42765.0,0.570665]
[1704117016995,0.01,42773.0,42767.0,0.0585]
[1704117017380,0.01,42773.0,42766.0,0.06588]
[1704117017585,0.01,42773.0,42768.0,0.05214]
[1704117017995,0.01,42773.0,42769.0,0.2431]
[1704117018207,0.012,42773.0,42769.0,0.28876]
[1704117018408,0.012,42773.0,42769.0,0.2431]
[1704117018994,0.01,42773.0,42769.0,0.2431]
[1704117019206,0.012,42773.0,42769.0,0.2431]
[1704117020451,0.014,42773.0,42769.0,0.2431]
[1704117020870,0.012,42773.0,42769.0,0.2431]
[1704117021281,0.014,42773.0,42769.0,0.2431]
[1704117023573,0.07001583,42773.0,42769.0,0.2431]
[1704117023995,0.06001583,42773.0,42769.0,0.2431]
[1704117024213,0.07001583,42773.0,42769.0,0.2431]
[1704117026291,0.05601583,42772.0,42769.0,0.2431]
[1704117027370,0.14003959,42776.0,42775.0,0.26834875]
[1704117027705,0.16303959,42776.0,42775.0,0.26834875]
[1704117028346,0.63059059,42776.0,42775.0,0.26834875]
[1704117028767,0.63659059,42776.0,42775.0,0.26834875]
[1704117028978,0.496551,42776.0,42775.0,0.26834875]
[1704117029633,0.502551,42776.0,42775.0,0.26834875]
[1704117033838,0.479551,42776.0,42775.0,0.26834875]
[1704117034091,0.012,42776.0,42775.0,0.26834875]
[1704117037106,0.12411815,42776.0,42775.0,0.26834875]
[1704117041159,0.15203959,42776.0,42775.0,0.26834875]
[1704117042524,0.012,42776.0,42775.0,0.26834875]
[1704117042703,0.12422214,42776.0,42775.0,0.26834875]
[1704117043508,0.12422438,42776.0,42775.0,0.26834875]
[1704117043916,0.15203959,42776.0,42775.0,0.26834875]
[1704117044264,0.012,42776.0,42775.0,0.26834875]
[1704117044501,0.1522926,42776.0,42775.0,0.26834875]
[1704117051700,0.1462926,42776.0,42775.0,0.26834875]
[1704117051936,0.1522926,42776.0,42775.0,0.26834875]
[1704117052272,0.1462926,42776.0,42775.0,0.26834875]
[1704117052720,0.1522926,42776.0,42775.0,0.26834875]
[1704117055411,0.012,42776.0,42775.0,0.26834875]
[1704117055838,0.12424989,42776.0,42775.0,0.26834875]
[1704117059801,0.11824989,42776.0,42775.0,0.26834875]
[1704117060039,0.11224989,42776.0,42775.0,0.26834875]
[1704117060256,0.11824989,42776.0,42775.0,0.26834875]
[1704117060400,0.11224989,42776.0,42775.0,0.26834875]
[1704117060938,0.11724989,42776.0,42775.0,0.26834875]
[1704117061346,0.12324989,42776.0,42775.0,0.26834875]
[1704117061813,0.11724989,42776.0,42775.0,0.26834875]
[1704117062203,0.12124989,42776.0,42775.0,0.26834875]
[1704117071898,0.009,42776.0,42775.0,0.26834875]
[1704117072097,0.009,42776.0,42775.0,0.32492875]
[1704117072751,0.009,42776.0,42775.0,0.58032875]
[1704117073132,0.004,42776.0,42775.0,0.58032875]
[1704117073548,0.004,42776.0,42775.0,0.58232875]
[1704117073718,0.004,42776.0,42775.0,0.58032875]
[1704117074247,0.05612562,42783.0,42775.0,0.58532875]
[1704117074511,0.05612562,42783.0,42775.0,0.58032875]
[1704117074966,0.05612562,42783.0,42776.0,0.06708]
[1704117075401,0.52380037,42784.0,42776.0,0.06708]
[1704117076267,0.05612562,42783.0,42776.0,0.06708]
[1704117076479,0.52380037,42784.0,42776.0,0.06708]
[1704117076882,0.05612562,42783.0,42776.0,0.06708]
[1704117077100,0.06512562,42783.0,42776.0,0.06708]
[1704117077348,0.06012562,42783.0,42776.0,0.06708]
[1704117078035,0.004,42783.0,42776.0,0.06708]
[1704117078245,0.52380037,42784.0,42776.0,0.06708]
[1704117078432,0.005,42783.0,42776.0,0.06708]
[1704117079059,0.06112562,42783.0,42776.0,0.06708]
[1704117079207,0.009,42783.0,42776.0,0.06708]
[1704117079860,0.004,42783.0,42776.0,0.06708]
[1704117080206,0.52980037,42784.0,42776.0,0.06708]
[1704117080388,0.52380037,42784.0,42776.0,0.06708]
[1704117080826,0.003,42783.0,42776.0,0.06708]
[1704117081180,0.52380037,42784.0,42776.0,0.06708]
[1704117081422,0.003,42783.0,42776.0,0.06708]
[1704117082067,0.52380037,42784.0,42776.0,0.06708]
[1704117082267,0.52780037,42784.0,42776.0,0.06708]
[1704117082747,0.52380037,42784.0,42776.0,0.06708]
[1704117082957,0.467497,42781.0,42776.0,0.06708]
[1704117083168,0.467511,42780.0,42775.0,0.52374875]
[1704117083373,0.52363662,42780.0,42775.0,0.52374875]
[1704117084013,0.05612562,42779.0,42775.0,0.52374875]
[1704117084171,0.05612562,42778.0,42775.0,0.52374875]
[1704117084601,0.05612562,42778.0,42775.0,0.52474875]
[1704117084800,0.05612562,42778.0,42775.0,0.52374875]
[1704117085204,0.05612562,42778.0,42775.0,0.52574875]
[1704117085634,0.05612562,42778.0,42775.0,0.27434875]
[1704117086809,0.05612562,42778.0,42775.0,0.27234875]
[1704117087041,0.05612562,42778.0,42775.0,0.27634875]
[1704117087423,0.05612562,42778.0,42775.0,0.27234875]
[1704117087580,0.05912562,42778.0,42775.0,0.26834875]
[1704117087789,0.05912562,42778.0,42775.0,0.27034875]
[1704117088208,0.003,42778.0,42775.0,0.27034875]
[1704117088417,0.46752,42779.0,42775.0,0.26834875]
[1704117088631,0.70073711,42779.0,42775.0,0.26834875]
[1704117088925,0.003,42778.0,42775.0,0.26834875]
[1704117090678,0.70473711,42779.0,42775.0,0.26834875]
[1704117090825,0.70073711,42779.0,42775.0,0.26834875]
[1704117091026,0.70573711,42779.0,42775.0,0.26834875]
[1704117091238,0.003,42778.0,42775.0,0.26834875]
[1704117091448,0.006,42778.0,42775.0,0.26834875]
[1704117091691,0.003,42778.0,42775.0,0.26834875]
[1704117091898,0.70473711,42779.0,42775.0,0.26834875]
[1704117092053,0.76586273,42779.0,42775.0,0.26834875]
[1704117092497,0.70073711,42779.0,42775.0,0.26834875]
[1704117092729,0.003,42778.0,42775.0,0.26834875]
[1704117093687,0.006,42778.0,42775.0,0.26834875]
[1704117093896,0.003,42778.0,42775.0,0.26834875]
[1704117095135,0.006,42778.0,42775.0,0.26834875]
[1704117095346,0.06203734,42778.0,42775.0,0.26834875]
[1704117099017,0.29525445,42778.0,42775.0,0.26834875]
[1704117105937,0.29525445,42778.0,42776.0,0.2538]
[1704117106707,0.29225445,42778.0,42776.0,0.2538]
[1704117107233,0.29525445,42778.0,42776.0,0.2538]
[1704117107555,0.29225445,42778.0,42776.0,0.2538]
[1704117108527,0.29525445,42778.0,42776.0,0.2538]
[1704117111389,0.05603734,42777.0,42776.0,0.2538]
[1704117111633,0.29525445,42778.0,42776.0,0.2538]
[1704117112464,0.05603734,42777.0,42776.0,0.2538]